bitfinex-derivatives/quotes_SOLF0:USTF0_20250415
["timestamp","ask_amount","ask_price","bid_price","bid_amount"]
[1744758472998,5.68642874,126.25,126.22,0.05691609]
[1744758473199,7.9226,126.23,126.22,0.05691609]
[1744758474305,0.05080734,126.25,126.22,5.69253749]
[1744758475100,7.9223,126.24,126.22,7.97991609]
[1744758476409,0.05080734,126.25,126.22,0.05691609]
[1744758476907,0.05080734,126.25,126.22,8.86519938]
[1744758477110,0.05080734,126.25,126.24,7.922]
[1744758477307,0.05080734,126.25,126.22,8.86519938]
[1744758477809,7.97230734,126.25,126.23,7.9221]
[1744758478408,0.05080734,126.25,126.23,7.9221]
[1744758478711,0.05080734,126.25,126.22,8.86519938]
[1744758479111,7.97220734,126.25,126.23,7.9224]
[1744758480814,0.05080734,126.25,126.24,7.922]
[1744758481013,34.8262,126.33,126.24,39.54828329]
[1744758481212,36.982,126.33,126.24,39.54828329]
[1744758481412,7.9199,126.28,126.24,39.54828329]
[1744758481614,8.80828329,126.32,126.24,39.54828329]
[1744758481909,7.92,126.28,126.27,0.05506024]
[1744758489523,0.05668244,126.29,126.27,0.05506024]
[1744758490522,6.242,126.33,126.28,30.72]
[1744758491223,7.9173,126.32,126.29,7.9184]
[1744758491525,7.9720871,126.32,126.29,7.97922823]
[1744758491723,0.0547871,126.32,126.29,0.06082823]
[1744758491927,7.918,126.31,126.29,0.06082823]
[1744758494526,7.918,126.31,126.29,7.97962823]
[1744758496230,0.0547871,126.32,126.29,0.06082823]
[1744758497830,0.0547871,126.32,126.3,8.80828329]
[1744758498030,7.9147,126.36,126.31,30.4]
[1744758498224,36.5272,126.39,126.32,8.80828329]
[1744758498731,7.9141,126.37,126.34,7.9153]
[1744758499124,7.9146,126.36,126.34,38.36802293]
[1744758499325,0.058978,126.37,126.34,38.36802293]
[1744758499631,0.058978,126.37,126.34,30.45232293]
[1744758499825,7.9148,126.36,126.34,30.45232293]
[1744758500531,7.973178,126.37,126.34,38.36802293]
[1744758503428,0.058978,126.37,126.35,7.9147]
[1744758504233,7.973278,126.37,126.34,38.36792293]
[1744758506034,7.9146,126.36,126.34,38.36792293]
[1744758506431,7.973178,126.37,126.34,38.36792293]
[1744758509434,7.9146,126.36,126.34,30.45232293]
[1744758511137,7.9146,126.36,126.34,36.07849061]
[1744758511330,7.9146,126.36,126.34,43.99419061]
[1744758511836,0.058978,126.37,126.34,0.05232293]
[1744758512134,0.058978,126.37,126.17,23.7785]
[1744758512135,5.62616768,126.35,126.28,30.4]
[1744758512337,5.62616768,126.32,126.28,30.4]
[1744758512938,0.05751354,126.31,126.29,0.05976155]
[1744758513332,7.9182,126.3,126.29,0.05976155]
[1744758514238,7.97551354,126.31,126.29,0.05976155]
[1744758514437,0.05751354,126.31,126.29,0.05976155]
[1744758514939,7.97551354,126.31,126.29,0.05976155]
[1744758515437,0.05751354,126.31,126.29,0.05976155]
[1744758515839,0.05751354,126.31,126.29,7.97816155]
[1744758517443,0.05751354,126.31,126.3,7.9182]
[1744758519236,7.916,126.34,126.32,7.9167]
[1744758519643,36.6798,126.38,126.31,30.4]
[1744758519843,36.6798,126.38,126.31,38.3173]
[1744758520146,36.6798,126.38,126.31,30.4]
[1744758520343,0.05391663,126.36,126.33,0.05020038]
[1744758520844,7.9157,126.34,126.33,0.05020038]
[1744758533653,0.05391663,126.36,126.33,0.05020038]
[1744758533854,181.9122736,126.44,126.35,17.59909618]
[1744758534054,181.9122736,126.44,126.41,8.79954809]
[1744758534347,35.99984251,126.51,126.43,8.79954809]
[1744758534551,35.99984251,126.51,126.46,8.79954809]
[1744758534753,35.99984251,126.51,126.46,16.70734809]
[1744758535054,272.92244431,126.48,126.46,8.85019414]
[1744758536053,272.92244431,126.48,126.46,16.75839414]
[1744758536355,0.05403391,126.48,126.46,16.75839414]
[1744758536751,0.05403391,126.48,126.47,7.9076]
[1744758537049,36.4846,126.53,126.47,7.9076]
[1744758537955,0.05531161,126.51,126.49,0.06056774]
[1744758539253,0.05531161,126.51,126.49,7.96646774]
[1744758539753,8.79954809,126.58,126.5,16.70494809]
[1744758539955,30.18,126.57,126.5,16.70494809]
[1744758540249,30.18,126.57,126.52,7.9044]
[1744758540955,0.05353664,126.56,126.53,0.05276215]
[1744758541160,0.05353664,126.56,126.53,7.95656215]
[1744758542262,0.05353664,126.56,126.53,0.05276215]
[1744758543260,7.9031,126.55,126.53,0.05276215]
[1744758544260,7.9032,126.54,126.53,0.05276215]
[1744758544464,38.97954809,126.54,126.47,38.97954809]
[1744758544655,2.067,126.53,126.47,38.97954809]
[1744758545161,7.9045,126.52,126.48,7.9066]
[1744758545461,0.05511192,126.51,126.49,0.05396593]
[1744758545855,7.96041192,126.51,126.49,0.05396593]
[1744758546160,30.23511192,126.51,126.44,30.18]
[1744758546356,8.79954809,126.5,126.4,8.79954809]
[1744758546560,8.79954809,126.48,126.41,30.18]
[1744758546757,8.79954809,126.46,126.39,4.2092]
[1744758546953,2.067,126.47,126.41,7.9111]
[1744758547158,0.05021904,126.45,126.43,0.05915514]
[1744758549261,0.05021904,126.45,126.43,7.96905514]
[1744758549462,0.05021904,126.45,126.43,0.05915514]
[1744758552462,7.95911904,126.45,126.43,0.05915514]
[1744758553355,7.9095,126.44,126.43,0.05915514]
[1744758554054,0.05021904,126.45,126.43,0.05915514]
[1744758554563,7.95911904,126.45,126.43,0.05915514]
[1744758555563,7.9095,126.44,126.43,0.05915514]
[1744758556463,7.95941904,126.45,126.43,0.05915514]
[1744758558764,7.9095,126.44,126.43,0.05915514]
[1744758558965,30.23021904,126.45,126.38,30.18]
[1744758559164,30.18,126.45,126.38,30.18]
[1744758559465,8.79954809,126.44,126.38,30.18]
[1744758559767,30.18,126.45,126.36,10.88204809]
[1744758559969,0.05075304,126.42,126.39,0.05884878]
[1744758560571,7.9114,126.41,126.39,0.05884878]
[1744758561676,7.912,126.4,126.39,0.05884878]
[1744758561971,0.05075304,126.42,126.39,0.05884878]
[1744758562171,7.9116,126.41,126.39,0.05884878]
[1744758563374,7.96185304,126.42,126.39,7.97134878]
[1744758564770,7.9114,126.41,126.39,0.05884878]
[1744758566778,7.912,126.4,126.39,0.05884878]
[1744758569380,7.9117,126.41,126.39,0.05884878]
[1744758570578,7.912,126.4,126.39,0.05884878]
[1744758571675,0.05075304,126.42,126.39,0.05884878]
[1744758572278,0.05075304,126.42,126.4,7.9117]
[1744758572780,7.96145304,126.42,126.4,7.9117]
[1744758572976,0.05075304,126.42,126.41,7.9113]
[1744758573280,0.05075304,126.42,126.39,0.05884878]
[1744758574079,0.05075304,126.42,126.41,7.9113]
[1744758574579,0.05075304,126.42,126.41,38.0913]
[1744758575876,0.05075304,126.42,126.41,30.18]
[1744758576071,0.05075304,126.42,126.39,0.05884878]
[1744758576479,7.96175304,126.42,126.39,7.97104878]
[1744758576782,7.96175304,126.42,126.39,0.05884878]
[1744758577283,7.96175304,126.42,126.4,7.9117]
[1744758577784,0.05075304,126.42,126.41,7.9113]
[1744758581689,7.9091,126.45,126.42,7.9102]
[1744758581988,32.2931,126.48,126.42,30.18]
[1744758582180,7.9079,126.47,126.44,7.9089]
[1744758582388,7.9079,126.47,126.44,8.79954809]
[1744758582787,0.06006058,126.47,126.45,7.9084]
[1744758583590,7.96766058,126.47,126.45,7.9084]
[1744758583985,0.06006058,126.47,126.44,8.85431317]
[1744758584191,0.06006058,126.47,126.46,7.9082]
[1744758591791,0.06006058,126.47,126.46,16.70774809]
[1744758592296,2.1736,126.53,126.46,8.79954809]
[1744758592491,2.1736,126.53,126.48,8.79954809]
[1744758592691,2.1736,126.53,126.48,38.95954809]
[1744758592892,30.16,126.54,126.49,7.9059]
[1744758593092,38.95954809,126.54,126.48,30.16]
[1744758593289,0.0544438,126.52,126.5,0.05226042]
[1744758593595,7.9052,126.51,126.5,0.05226042]
[1744758600693,8.85399189,126.52,126.45,30.16]
[1744758600895,8.79954809,126.5,126.42,30.16]
[1744758601200,7.9111,126.42,126.4,5.62105207]
[1744758601501,5.62105207,126.46,126.41,5.62105207]
[1744758601696,7.96046681,126.45,126.42,5.67783074]
[1744758601894,7.96046681,126.45,126.44,5.62105207]
[1744758602097,0.05116681,126.45,126.44,5.62105207]
[1744758603101,0.05116681,126.45,126.43,7.9098]
[1744758603301,7.95996681,126.45,126.43,7.9098]
[1744758604003,0.05116681,126.45,126.44,7.9095]
[1744758604301,30.16,126.5,126.44,8.77700933]
[1744758604603,7.9073,126.48,126.45,38.0685]
[1744758604794,30.16,126.53,126.46,8.77700933]
[1744758605000,6.436,126.55,126.48,8.77700933]
[1744758605200,7.9052,126.51,126.48,46.84360933]
[1744758605395,7.95609319,126.51,126.48,46.89931147]
[1744758606207,7.95609319,126.51,126.49,7.9063]
[1744758608410,0.05089319,126.51,126.48,30.21570214]
[1744758608600,0.05089319,126.51,126.48,0.05570214]
[1744758608898,8.82790252,126.51,126.48,0.05570214]
[1744758609509,7.9063,126.49,126.48,0.05570214]
[1744758611107,7.95629319,126.51,126.48,7.96240214]
[1744758611311,0.05089319,126.51,126.48,0.05570214]
[1744758611817,7.9063,126.49,126.48,0.05570214]
[1744758613013,38.93700933,126.49,126.42,30.16]
[1744758613215,4.0217,126.48,126.42,30.16]
[1744758613811,8.77700933,126.47,126.39,39.3847025]
[1744758614012,0.05171681,126.44,126.42,0.05219653]
[1744758614212,7.9101,126.43,126.42,0.05219653]
[1744758626220,7.9123,126.4,126.37,7.9136]
[1744758627122,7.9708064,126.4,126.37,7.96403691]
[1744758627813,7.9132,126.38,126.37,0.05043691]
[1744758628018,8.77700933,126.39,126.37,0.05043691]
[1744758628419,8.77700933,126.39,126.33,30.16]
[1744758628619,32.1722,126.4,126.33,30.16]
[1744758628819,30.16,126.4,126.33,38.93700933]
[1744758629623,7.9141,126.37,126.35,0.05770491]
[1744758631624,7.9141,126.37,126.35,7.97260491]
[1744758634621,0.0527381,126.38,126.36,7.9141]
[1744758635025,0.0527381,126.38,126.36,38.0741]
[1744758637226,0.0527381,126.38,126.37,7.9139]
[1744758637830,30.16,126.44,126.36,30.16]
[1744758638322,7.912,126.4,126.36,30.16]
[1744758638526,7.912,126.4,126.37,7.9133]
[1744758638729,7.97053984,126.4,126.37,0.05744889]
[1744758639123,7.97053984,126.4,126.37,5.6804899]
[1744758639828,7.97053984,126.4,126.38,7.9132]
[1744758640037,7.97053984,126.4,126.37,5.6804899]
[1744758640929,7.97053984,126.4,126.38,7.9132]
[1744758643531,7.9127,126.39,126.37,13.5940899]
[1744758644233,7.97083984,126.4,126.37,13.5940899]
[1744758644532,5.62304101,126.39,126.37,0.05744889]
[1744758644730,5.62304101,126.38,126.37,0.05744889]
[1744758645031,13.53624101,126.38,126.37,0.05744889]
[1744758646530,7.9132,126.38,126.37,0.05744889]
[1744758647432,13.53624101,126.38,126.37,0.05744889]
[1744758649133,7.9132,126.38,126.37,0.05744889]
[1744758655938,7.9129,126.39,126.37,0.05744889]
[1744758658340,0.05853984,126.4,126.37,0.05744889]
[1744758659042,7.9129,126.39,126.37,0.05744889]
[1744758661651,0.05853984,126.4,126.37,0.05744889]
[1744758662247,0.05853984,126.4,126.39,7.9126]
[1744758662847,0.05853984,126.4,126.39,38.0726]
[1744758663047,7.9103,126.43,126.39,30.16]
[1744758663251,30.16,126.48,126.39,38.95193355]
[1744758663554,7.9085,126.46,126.41,8.79193355]
[1744758663748,4.2967,126.5,126.42,30.16]
[1744758663955,4.2967,126.5,126.43,8.79193355]
[1744758664145,7.964328,126.48,126.45,7.96806672]
[1744758664344,0.057028,126.48,126.46,30.16]
[1744758664853,30.16,126.54,126.46,30.16]
[1744758665052,7.9048,126.52,126.48,7.9069]
[1744758665757,7.9048,126.52,126.47,20.79263355]
[1744758665954,0.05094389,126.51,126.49,0.05974183]
[1744758666756,0.05094389,126.51,126.49,30.19974183]
[1744758668155,0.05094389,126.51,126.49,0.05974183]
[1744758670157,7.9057,126.5,126.49,0.05974183]
[1744758676763,7.95634389,126.51,126.49,0.05974183]
[1744758677461,7.95634389,126.51,126.49,30.19974183]
[1744758677960,7.9057,126.5,126.49,30.19974183]
[1744758679066,7.9057,126.5,126.49,0.05974183]
[1744758688476,7.95644389,126.51,126.49,0.05974183]
[1744758689076,7.9057,126.5,126.49,0.05974183]
[1744758689377,0.05094389,126.51,126.49,38.97167538]
[1744758689878,0.05094389,126.51,126.5,7.9057]
[1744758690876,30.12,126.57,126.49,38.97167538]
[1744758691076,7.9024,126.56,126.49,38.91193355]
[1744758691777,0.05035151,126.54,126.53,7.9038]
[1744758697281,38.91193355,126.6,126.55,7.9025]
[1744758697481,7.9013,126.58,126.55,7.9025]
[1744758697780,38.91193355,126.6,126.52,32.2312]
[1744758697977,7.9012,126.58,126.52,32.2312]
[1744758698282,0.05813221,126.56,126.54,0.05868131]
[1744758698980,0.05813221,126.56,126.55,7.9026]
[1744758699684,0.05813221,126.56,126.54,7.96158131]
[1744758699979,0.05813221,126.56,126.54,0.05868131]
[1744758700286,0.05813221,126.56,126.54,7.96158131]
[1744758701986,0.05813221,126.56,126.55,7.9026]
[1744758702286,0.05813221,126.56,126.55,38.0026]
[1744758702483,0.05813221,126.56,126.55,30.1]
[1744758703385,0.05813221,126.56,126.55,38.0026]
[1744758703984,8.79193355,126.62,126.55,38.0026]
[1744758703985,7.8998,126.6,126.55,30.1]
[1744758704189,8.79193355,126.64,126.55,38.89193355]
[1744758705186,7.9,126.6,126.58,0.05519957]
[1744758706688,7.9001,126.59,126.58,0.05519957]
[1744758707190,7.8998,126.6,126.58,30.15519957]
[1744758708794,7.9521856,126.61,126.59,5.60520392]
[1744758709792,7.8995,126.6,126.58,38.05549957]
[1744758709994,7.8995,126.6,126.58,43.66070349]
[1744758710283,7.8995,126.6,126.58,30.15519957]
[1744758710491,7.9001,126.59,126.58,30.15519957]
[1744758710690,5.65828952,126.61,126.58,30.15519957]
[1744758710886,0.0530856,126.61,126.58,30.15519957]
[1744758711390,0.0530856,126.61,126.58,38.05579957]
[1744758712089,0.0530856,126.61,126.6,5.60520392]
[1744758712687,0.0530856,126.61,126.6,13.50470392]
[1744758713485,30.1,126.66,126.62,7.8981]
[1744758713693,7.897,126.64,126.62,7.8981]
[1744758713991,6.3783,126.68,126.64,7.8966]
[1744758714190,7.8957,126.67,126.64,7.8966]
[1744758714393,6.3783,126.68,126.63,5.60520392]
[1744758714690,7.8961,126.66,126.64,0.05968018]
[1744758715191,7.8961,126.66,126.64,7.95648018]
[1744758715491,7.8961,126.66,126.64,0.05968018]
[1744758717191,7.8961,126.66,126.64,7.95668018]
[1744758717889,7.8964,126.65,126.64,0.05968018]
[1744758720693,37.96,126.65,126.58,30.06]
[1744758720995,8.75038389,126.62,126.58,30.06]
[1744758721695,0.05810645,126.61,126.59,0.0543587]
[1744758721898,7.8995,126.6,126.59,0.0543587]
[1744758722697,8.75038389,126.6,126.53,6.0807]
[1744758722995,8.75038389,126.58,126.52,37.9645]
[1744758723196,7.9029,126.55,126.52,37.9645]
[1744758723395,32.261,126.59,126.52,30.06]
[1744758723693,7.9023,126.56,126.54,0.05287774]
[1744758723897,0.05228037,126.57,126.54,0.05287774]
[1744758725196,7.9025,126.56,126.54,0.05287774]
[1744758725990,0.05228037,126.57,126.54,0.05287774]
[1744758726294,8.75038389,126.56,126.54,0.05287774]
[1744758726495,38.81038389,126.56,126.49,30.06]
[1744758726886,38.81038389,126.56,126.49,37.9661]
[1744758727089,8.75038389,126.54,126.46,36.4529]
[1744758727286,8.75038389,126.52,126.46,30.06]
[1744758727487,0.05760071,126.5,126.48,0.04993014]
[1744758728694,0.05760071,126.5,126.49,30.06]
[1744758729497,7.9035,126.54,126.49,30.06]
[1744758729993,2.1163,126.58,126.5,8.75038389]
[1744758730195,32.281,126.59,126.52,8.75038389]
[1744758730396,13.03848389,126.62,126.54,8.75038389]
[1744758730595,7.95696992,126.59,126.57,0.05278417]
[1744758732308,0.05636992,126.59,126.57,0.05278417]
[1744758733108,7.9007,126.58,126.57,0.05278417]
[1744758734709,7.95676992,126.59,126.57,0.05278417]
[1744758735111,0.05636992,126.59,126.57,0.05278417]
[1744758735508,0.05636992,126.59,126.58,37.9807]
[1744758735908,7.8982,126.62,126.58,38.83038389]
[1744758736312,4.1442,126.65,126.58,38.83038389]
[1744758736908,0.05021046,126.63,126.6,0.05869452]
[1744758737212,7.8989,126.61,126.6,0.05869452]
[1744758738414,7.9012,126.58,126.55,30.08]
[1744758738714,7.9012,126.58,126.55,37.9826]
[1744758739320,7.95290094,126.58,126.55,38.04218109]
[1744758741211,0.05170094,126.58,126.56,7.9019]
[1744758742220,7.9013,126.57,126.55,30.13958109]
[1744758743213,7.95270094,126.58,126.55,30.13958109]
[1744758743517,0.05170094,126.58,126.55,38.04178109]
[1744758744217,7.9014,126.57,126.55,38.04178109]
[1744758744419,0.05170094,126.58,126.55,38.04178109]
[1744758744616,0.05170094,126.58,126.55,30.13958109]
[1744758744816,7.902,126.56,126.55,0.05958109]
[1744758753423,7.9045,126.53,126.49,30.06]
[1744758753721,8.75038389,126.54,126.49,30.06]
[1744758753927,8.75038389,126.52,126.46,30.06]
[1744758754520,0.05676415,126.5,126.48,0.05616338]
[1744758756022,7.9063,126.49,126.48,0.05616338]
[1744758757628,7.96276415,126.5,126.48,0.05616338]
[1744758758328,7.9063,126.49,126.48,0.05616338]
[1744758759929,0.05676415,126.5,126.48,0.05616338]
[1744758759930,7.96266415,126.5,126.48,0.05616338]
[1744758762035,7.9063,126.49,126.48,0.05616338]
[1744758767529,7.96276415,126.5,126.48,0.05616338]
[1744758767930,0.05676415,126.5,126.48,0.05616338]
[1744758768429,0.05676415,126.5,126.48,7.96256338]
[1744758768629,0.05676415,126.5,126.48,0.05616338]
[1744758769130,0.05676415,126.5,126.49,7.9063]
[1744758769336,0.05676415,126.5,126.49,37.9863]
[1744758770933,14.84658389,126.56,126.51,7.9046]
[1744758771336,30.08,126.57,126.49,38.83038389]
[1744758771738,44.88048389,126.6,126.51,8.75038389]
[1744758771931,36.1301,126.6,126.53,8.75038389]
[1744758772236,0.05480875,126.57,126.54,0.05216423]
[1744758772631,0.05480875,126.57,126.54,4.11896423]
[1744758772836,0.05480875,126.57,126.54,6.27996423]
[1744758773533,0.05480875,126.57,126.55,7.902]
[1744758776537,0.05480875,126.57,126.54,6.27996423]
[1744758776732,0.05480875,126.57,126.54,0.05216423]
[1744758777435,7.95650875,126.57,126.54,7.95486423]
[1744758777636,7.95650875,126.57,126.54,0.05216423]
[1744758778337,7.95650875,126.57,126.54,7.95506423]
[1744758779632,7.9021,126.56,126.54,7.95506423]
[1744758779833,7.9021,126.56,126.54,0.05216423]
[1744758780337,8.75038389,126.56,126.54,0.05216423]
[1744758780637,45.20138389,126.56,126.48,362.0]
[1744758780827,8.75038389,126.54,126.47,48.03508639]
[1744758781437,8.75038389,126.54,126.48,7.9067]
[1744758781645,0.05839895,126.52,126.49,0.05798911]
[1744758782235,7.9055,126.51,126.49,0.05798911]
[1744758782745,7.9055,126.51,126.49,7.96418911]
[1744758782939,7.96319895,126.52,126.49,7.96418911]
[1744758783238,0.05839895,126.52,126.49,0.05798911]
[1744758783544,7.9023,126.56,126.51,8.75038389]
[1744758783743,38.81038389,126.59,126.51,8.75038389]
[1744758783940,7.9016,126.57,126.54,7.903]
[1744758784144,30.06,126.59,126.53,30.06]
[1744758784442,0.05321829,126.57,126.55,0.05600866]
[1744758785143,0.05321829,126.57,126.55,7.95830866]
[1744758787044,7.95461829,126.57,126.55,7.95830866]
[1744758787247,7.95461829,126.57,126.56,7.902]
[1744758787248,0.05321829,126.57,126.56,7.902]
[1744758787551,7.8999,126.6,126.56,30.06]
[1744758787740,7.8999,126.6,126.57,7.9011]
[1744758788247,45.09888389,126.63,126.56,30.06]
[1744758788442,8.75038389,126.61,126.56,30.06]
[1744758788647,8.80371156,126.61,126.58,0.05066694]
[1744758789648,8.75038389,126.59,126.53,30.06]
[1744758789843,8.75038389,126.56,126.5,30.06]
[1744758790047,7.9029,126.55,126.52,7.9042]
[1744758790446,10.75068389,126.58,126.5,30.06]
[1744758790650,0.05277977,126.55,126.53,0.05981543]
[1744758791046,7.95547977,126.55,126.53,0.05981543]
[1744758792141,0.05277977,126.55,126.53,7.96341543]
[1744758793155,0.05277977,126.55,126.53,0.05981543]
[1744758793657,7.95577977,126.55,126.53,0.05981543]
[1744758793959,0.05277977,126.55,126.53,30.11981543]
[1744758794255,7.9004,126.59,126.56,7.9017]
[1744758795355,7.95430846,126.59,126.56,7.95667576]
[1744758795557,0.05390846,126.59,126.56,0.05497576]
[1744758795858,8.75038389,126.58,126.5,30.06]
[1744758796156,7.9037,126.54,126.5,30.06]
[1744758796857,0.06014651,126.53,126.51,7.95611079]
[1744758799260,0.06014651,126.53,126.52,7.9045]
[1744758799461,38.81038389,126.6,126.51,0.05131079]
[1744758799662,38.81038389,126.6,126.5,38.81038389]
[1744758799960,7.9029,126.55,126.52,7.9041]
[1744758800552,7.96196515,126.55,126.52,7.95525138]
[1744758801561,7.9033,126.54,126.52,7.95525138]
[1744758806471,7.96196515,126.55,126.52,7.95525138]
[1744758806667,0.05906515,126.55,126.52,0.05115138]
[1744758806963,0.05906515,126.55,126.53,30.06]
[1744758807358,0.05906515,126.55,126.54,7.9032]
[1744758809465,7.96166515,126.55,126.53,37.9636]
[1744758809672,0.05906515,126.55,126.53,30.06]
[1744758810765,7.96186515,126.55,126.53,30.06]
[1744758811266,0.05906515,126.55,126.53,37.9636]
[1744758811462,0.05906515,126.55,126.53,30.06]
[1744758813173,0.05906515,126.55,126.54,7.9032]
[1744758815477,30.06,126.6,126.56,7.9015]
[1744758815667,12.95128389,126.61,126.56,7.9015]
[1744758816168,7.9006,126.59,126.56,7.9015]
[1744758816573,7.9006,126.59,126.56,7.95494156]
[1744758817573,7.9008,126.58,126.56,7.95494156]
[1744758817774,7.9008,126.58,126.56,0.05344156]
[1744758817978,8.75038389,126.59,126.56,0.05344156]
[1744758818169,7.9013,126.58,126.56,0.05344156]
[1744758818370,7.9013,126.58,126.56,7.95534156]
[1744758819176,2.121,126.63,126.56,30.11344156]
[1744758819576,7.8985,126.62,126.6,7.8994]
[1744758819876,7.8985,126.62,126.6,0.05341053]
[1744758820877,7.8985,126.62,126.6,7.95281053]
[1744758823171,10.0189,126.63,126.61,7.8988]
[1744758823476,4.1102,126.65,126.6,0.05341053]
[1744758823776,4.1102,126.65,126.6,7.95261053]
[1744758824277,4.1102,126.65,126.6,0.05341053]
[1744758824477,8.75038389,126.64,126.6,0.05341053]
[1744758824977,7.8985,126.62,126.6,0.05341053]
[1744758825678,7.8985,126.62,126.6,7.95291053]
[1744758828878,7.8979,126.63,126.6,7.95291053]
[1744758829982,7.8979,126.63,126.61,7.8987]
[1744758830175,4.1102,126.65,126.61,7.8987]
[1744758830381,30.06,126.67,126.6,8.80379442]
[1744758830578,30.06,126.67,126.62,7.8977]
[1744758830783,30.06,126.67,126.63,0.05546619]
[1744758831482,7.8968,126.65,126.63,0.05546619]
[1744758832883,7.8968,126.65,126.63,7.95296619]
[1744758833078,7.8961,126.66,126.63,0.05546619]
[1744758833983,7.8961,126.66,126.63,7.95276619]
[1744758834785,7.8961,126.66,126.64,7.8969]
[1744758836284,8.75038389,126.68,126.63,0.05546619]
[1744758836484,6.344,126.69,126.63,0.05546619]
[1744758836891,7.8948,126.68,126.63,0.05546619]
[1744758838090,7.8948,126.68,126.65,7.8961]
[1744758838290,7.8952,126.67,126.65,7.8961]
[1744758838491,7.8952,126.67,126.65,7.95131567]
[1744758838791,7.895,126.68,126.66,7.8957]
[1744758838992,6.344,126.69,126.65,0.05521567]
[1744758840495,7.895,126.68,126.65,0.05521567]
[1744758840687,6.344,126.69,126.65,0.05521567]
[1744758841292,7.8956,126.67,126.65,0.05521567]
[1744758841996,7.8947,126.68,126.65,0.05521567]
[1744758842192,6.344,126.69,126.65,30.09521567]
[1744758842393,2.173,126.69,126.65,30.09521567]
[1744758842796,7.8942,126.69,126.65,30.09521567]
[1744758843809,38.79038389,126.72,126.65,30.09521567]
[1744758844094,6.0938,126.73,126.66,8.75038389]
[1744758844291,7.8929,126.71,126.68,0.05640973]
[1744758844492,7.8929,126.71,126.68,7.95030973]
[1744758845299,7.8926,126.71,126.69,7.8938]
[1744758846400,7.8922,126.72,126.7,7.8932]
[1744758847497,7.8922,126.72,126.69,7.8935]
[1744758847696,7.8922,126.72,126.68,30.07640973]
[1744758848201,7.8922,126.72,126.7,7.8929]
[1744758848600,7.8922,126.72,126.68,30.07640973]
[1744758848800,7.8922,126.72,126.69,7.8932]
[1744758849099,7.8922,126.72,126.68,30.07640973]
[1744758849301,2.0317,126.73,126.68,38.82679362]
[1744758849501,30.04,126.75,126.68,38.82679362]
[1744758849999,7.8912,126.74,126.71,7.8923]
[1744758850197,7.8912,126.74,126.71,7.94535144]
[1744758850403,7.8904,126.75,126.73,7.8913]
[1744758850599,7.8904,126.75,126.73,7.95083431]
[1744758850805,6.1527,126.77,126.73,0.05953431]
[1744758851105,7.8907,126.75,126.73,0.05953431]
[1744758851299,11.74546679,126.77,126.73,0.05953431]
[1744758852105,7.8898,126.76,126.73,7.95053431]
[1744758852904,5.59276679,126.76,126.73,0.05953431]
[1744758853107,6.1527,126.77,126.73,0.05953431]
[1744758853410,7.8906,126.75,126.73,0.05953431]
[1744758855809,6.1527,126.77,126.73,0.05953431]
[1744758857610,7.8908,126.74,126.73,0.05953431]
[1744758859110,7.8934,126.7,126.68,30.02]
[1744758860212,7.94774028,126.7,126.68,30.07227495]
[1744758861211,7.94774028,126.7,126.68,37.96667495]
[1744758861416,7.8939,126.69,126.68,30.07227495]
[1744758861614,0.05434028,126.7,126.68,30.07227495]
[1744758861911,7.8939,126.69,126.68,30.07227495]
[1744758864716,7.94794028,126.7,126.68,30.07227495]
[1744758864916,0.05434028,126.7,126.68,30.07227495]
[1744758865516,7.8939,126.69,126.68,30.07227495]
[1744758866526,7.94794028,126.7,126.68,30.07227495]
[1744758868620,0.05434028,126.7,126.68,30.07227495]
[1744758869526,0.05434028,126.7,126.69,7.8939]
[1744758872421,0.05434028,126.7,126.68,37.96647495]
[1744758872926,0.05434028,126.7,126.68,30.07227495]
[1744758873222,0.05434028,126.7,126.69,5.59513071]
[1744758874229,0.05434028,126.7,126.69,13.48903071]
[1744758877330,30.0,126.79,126.69,13.49513071]
[1744758877627,7.8891,126.77,126.75,13.48493071]
[1744758878131,7.8891,126.77,126.75,13.54329321]
[1744758878430,7.8895,126.76,126.75,0.0583625]
[1744758878931,7.8892,126.77,126.75,7.9484625]
[1744758879126,7.8892,126.77,126.75,0.0583625]
[1744758880531,7.8895,126.76,126.75,0.0583625]
[1744758882836,5.59513071,126.76,126.71,30.0]
[1744758883034,5.59513071,126.76,126.71,35.59513071]
[1744758883632,7.891,126.74,126.71,35.59513071]